[Event "Late-Titled-Tuesday-Blitz-February-13-2024"]
[Site "Chess.com"]
[Date "2024.02.13"]
[Round "2"]
[White "JackRodgers"]
[Black "Chemim21"]
[Result "1-0"]
[WhiteElo "2499"]
[BlackElo "2228"]
[TimeControl "180+1"]
[EndTime "14:18:08 PST"]
[Termination "JackRodgers won on time"]

1. d4 {[%clk 0:03:00.9]} 1... d5 {[%clk 0:02:59.4]} 2. c4 {[%clk 0:02:59.5]}
2... e6 {[%clk 0:02:59.8]} 3. Nc3 {[%clk 0:02:59.6]} 3... Nf6 {[%clk 0:03:00.1]}
4. Nf3 {[%clk 0:02:59.6]} 4... Nbd7 {[%clk 0:02:59.7]} 5. Bg5 {[%clk 0:02:59.5]}
5... c6 {[%clk 0:02:59.8]} 6. e3 {[%clk 0:02:59.7]} 6... Qa5 {[%clk 0:02:59.4]}
7. Bxf6 {[%clk 0:02:59.3]} 7... Nxf6 {[%clk 0:02:58.7]} 8. Bd3 {[%clk
0:02:57.3]} 8... Bb4 {[%clk 0:02:48.2]} 9. O-O {[%clk 0:02:55.8]} 9... Bxc3
{[%clk 0:02:47]} 10. bxc3 {[%clk 0:02:55.8]} 10... Qxc3 {[%clk 0:02:47.2]} 11.
Rc1 {[%clk 0:02:41.9]} 11... Qa5 {[%clk 0:02:43.9]} 12. Qc2 {[%clk 0:02:40.3]}
12... O-O {[%clk 0:02:39.7]} 13. Ne5 {[%clk 0:02:40.2]} 13... dxc4 {[%clk
0:02:37.4]} 14. Bxc4 {[%clk 0:02:36.6]} 14... Qc7 {[%clk 0:02:31]} 15. Bd3
{[%clk 0:02:32.9]} 15... Qd6 {[%clk 0:02:26.6]} 16. g4 {[%clk 0:02:31.4]} 16...
g6 {[%clk 0:02:15.2]} 17. g5 {[%clk 0:02:27.5]} 17... Nd5 {[%clk 0:02:10.8]} 18.
Qe2 {[%clk 0:02:12.1]} 18... Qe7 {[%clk 0:01:51.3]} 19. f4 {[%clk 0:02:03.8]}
19... f5 {[%clk 0:01:46.4]} 20. h4 {[%clk 0:01:57.3]} 20... Bd7 {[%clk
0:01:43.2]} 21. Kf2 {[%clk 0:01:53.7]} 21... Be8 {[%clk 0:01:42.6]} 22. Rg1
{[%clk 0:01:47.6]} 22... Rc8 {[%clk 0:01:37.5]} 23. h5 {[%clk 0:01:47.7]} 23...
c5 {[%clk 0:01:32.2]} 24. Bb5 {[%clk 0:01:37.1]} 24... cxd4 {[%clk 0:01:26.4]}
25. Rxc8 {[%clk 0:01:33.4]} 25... dxe3+ {[%clk 0:01:24.2]} 26. Kg3 {[%clk
0:01:30.7]} 26... Qb4 {[%clk 0:01:12.7]} 27. Bc4 {[%clk 0:01:16.2]} 27... Nc3
{[%clk 0:01:00.4]} 28. Bxe6+ {[%clk 0:01:02.2]} 28... Kg7 {[%clk 0:00:57.6]} 29.
Qc4 {[%clk 0:00:54.8]} 29... Ne4+ {[%clk 0:00:54.4]} 30. Kh4 {[%clk 0:00:38.3]}
30... Qd2 {[%clk 0:00:45]} 31. Qc2 {[%clk 0:00:32.9]} 31... gxh5 {[%clk
0:00:17.3]} 32. Qxd2 {[%clk 0:00:28.1]} 32... exd2 {[%clk 0:00:17.5]} 33. Nf3
{[%clk 0:00:20.2]} 33... Ba4 {[%clk 0:00:17.2]} 34. Rxf8 {[%clk 0:00:19.9]}
34... Kxf8 {[%clk 0:00:17.1]} 35. Bb3 {[%clk 0:00:20.6]} 35... Bb5 {[%clk
0:00:13.8]} 36. Rd1 {[%clk 0:00:15]} 36... Be2 {[%clk 0:00:13.6]} 37. Rxd2
{[%clk 0:00:15.4]} 37... Nxd2 {[%clk 0:00:13.1]} 38. Nxd2 {[%clk 0:00:15.4]}
38... Ke7 {[%clk 0:00:12.8]} 39. Nc4 {[%clk 0:00:14.2]} 39... b6 {[%clk
0:00:11.5]} 40. Ne5 {[%clk 0:00:14.6]} 40... a5 {[%clk 0:00:11.3]} 41. Bg8
{[%clk 0:00:14.3]} 41... b5 {[%clk 0:00:09.6]} 42. Nc6+ {[%clk 0:00:13.9]} 42...
Kf8 {[%clk 0:00:08.1]} 43. Bxh7 {[%clk 0:00:14.4]} 43... a4 {[%clk 0:00:08]} 44.
Bxf5 {[%clk 0:00:14.7]} 44... Bc4 {[%clk 0:00:06.3]} 45. Nb4 {[%clk 0:00:10.8]}
45... a3 {[%clk 0:00:03.9]} 46. Kxh5 {[%clk 0:00:10.6]} 46... Kf7 {[%clk
0:00:03.6]} 47. Be4 {[%clk 0:00:10.2]} 47... Kg7 {[%clk 0:00:04.5]} 48. f5
{[%clk 0:00:10.2]} 48... Be2+ {[%clk 0:00:04.6]} 49. Kh4 {[%clk 0:00:10.1]}
49... Bc4 {[%clk 0:00:04.7]} 50. Bd5 {[%clk 0:00:10.3]} 50... Be2 {[%clk
0:00:02.7]} 51. Kg3 {[%clk 0:00:09.9]} 1-0

[Event "Late-Titled-Tuesday-Blitz-February-13-2024"]
[Site "Chess.com"]
[Date "2024.02.13"]
[Round "2"]
[White "Actuary44"]
[Black "wild3000"]
[Result "1-0"]
[WhiteElo "2530"]
[BlackElo "2324"]
[TimeControl "180+1"]
[EndTime "14:18:10 PST"]
[Termination "Actuary44 won on time"]

1. e4 {[%clk 0:03:00.9]} 1... e6 {[%clk 0:02:59.7]} 2. d4 {[%clk 0:03:01.1]}
2... d5 {[%clk 0:02:59.6]} 3. Nc3 {[%clk 0:03:02]} 3... Bb4 {[%clk 0:02:56.1]}
4. e5 {[%clk 0:03:02.3]} 4... Ne7 {[%clk 0:02:55.1]} 5. f4 {[%clk 0:03:02.3]}
5... c5 {[%clk 0:02:53.9]} 6. dxc5 {[%clk 0:03:03.2]} 6... Bxc5 {[%clk
0:02:52.7]} 7. Nf3 {[%clk 0:03:03.3]} 7... Nbc6 {[%clk 0:02:49.5]} 8. Bd3 {[%clk
0:03:03.4]} 8... Nb4 {[%clk 0:02:49.2]} 9. a3 {[%clk 0:03:01]} 9... Nxd3+ {[%clk
0:02:49.1]} 10. Qxd3 {[%clk 0:03:01.9]} 10... Bd7 {[%clk 0:02:46.9]} 11. Bd2
{[%clk 0:03:01.9]} 11... a6 {[%clk 0:02:45.8]} 12. O-O-O {[%clk 0:02:57.7]}
12... b5 {[%clk 0:02:45.1]} 13. Ne2 {[%clk 0:02:57.7]} 13... Qb6 {[%clk
0:02:42.5]} 14. g4 {[%clk 0:02:57.1]} 14... b4 {[%clk 0:02:28.9]} 15. axb4
{[%clk 0:02:56.4]} 15... Bxb4 {[%clk 0:02:28.6]} 16. Bxb4 {[%clk 0:02:57.3]}
16... Qxb4 {[%clk 0:02:29.2]} 17. Qa3 {[%clk 0:02:47.6]} 17... Qxa3 {[%clk
0:02:28.6]} 18. bxa3 {[%clk 0:02:48.5]} 18... O-O {[%clk 0:02:25.5]} 19. Kd2
{[%clk 0:02:44.7]} 19... Nc6 {[%clk 0:02:22.8]} 20. Rb1 {[%clk 0:02:43.9]} 20...
Na5 {[%clk 0:02:21.4]} 21. Ned4 {[%clk 0:02:13.2]} 21... Nc4+ {[%clk 0:02:18.3]}
22. Ke2 {[%clk 0:02:12.8]} 22... Nxa3 {[%clk 0:02:15]} 23. Rb7 {[%clk
0:02:12.4]} 23... Bb5+ {[%clk 0:02:14.8]} 24. Kf2 {[%clk 0:02:07.4]} 24... Rfb8
{[%clk 0:02:12.6]} 25. Rxb8+ {[%clk 0:01:59.1]} 25... Rxb8 {[%clk 0:02:13.5]}
26. Ra1 {[%clk 0:01:58.1]} 26... Nc4 {[%clk 0:02:12.7]} 27. Nxb5 {[%clk
0:01:54.8]} 27... axb5 {[%clk 0:02:12.1]} 28. Nd4 {[%clk 0:01:55.3]} 28... h6
{[%clk 0:02:05.6]} 29. Ra7 {[%clk 0:01:46.5]} 29... g5 {[%clk 0:01:56.2]} 30. f5
{[%clk 0:01:34.9]} 30... exf5 {[%clk 0:01:52.4]} 31. Nxf5 {[%clk 0:01:34.2]}
31... Nxe5 {[%clk 0:01:48.5]} 32. h3 {[%clk 0:01:25.9]} 32... Nc6 {[%clk
0:01:23.1]} 33. Rc7 {[%clk 0:01:24.5]} 33... Nb4 {[%clk 0:01:22]} 34. Nxh6+
{[%clk 0:01:24.1]} 34... Kg7 {[%clk 0:01:20.7]} 35. Nf5+ {[%clk 0:01:22.4]}
35... Kf6 {[%clk 0:01:19.5]} 36. Ke3 {[%clk 0:01:16.9]} 36... Re8+ {[%clk
0:01:11.5]} 37. Kd4 {[%clk 0:01:16.9]} 37... Re4+ {[%clk 0:01:09.9]} 38. Kc5
{[%clk 0:01:13.8]} 38... Nxc2 {[%clk 0:01:08.4]} 39. Kxd5 {[%clk 0:01:11.6]}
39... Re6 {[%clk 0:01:05.6]} 40. Rxc2 {[%clk 0:01:06.3]} 40... b4 {[%clk
0:01:04.1]} 41. Rb2 {[%clk 0:01:04.9]} 41... Rb6 {[%clk 0:01:03.1]} 42. Kc5
{[%clk 0:01:05.3]} 42... Rb8 {[%clk 0:01:00.2]} 43. Nd6 {[%clk 0:01:03.2]} 43...
b3 {[%clk 0:00:55.1]} 44. Nb5 {[%clk 0:01:02.7]} 44... Rc8+ {[%clk 0:00:53.6]}
45. Kb4 {[%clk 0:01:02.9]} 45... Rc2 {[%clk 0:00:50.7]} 46. Rxb3 {[%clk
0:01:02.3]} 46... Rf2 {[%clk 0:00:49]} 47. Kc4 {[%clk 0:01:00.4]} 47... Kg6
{[%clk 0:00:48.9]} 48. Kd4 {[%clk 0:00:59.6]} 48... f5 {[%clk 0:00:48.8]} 49.
Nd6 {[%clk 0:00:52.2]} 49... fxg4 {[%clk 0:00:46.6]} 50. hxg4 {[%clk 0:00:52.4]}
50... Rf4+ {[%clk 0:00:46.6]} 51. Ke5 {[%clk 0:00:50.4]} 51... Rxg4 {[%clk
0:00:46.7]} 52. Nf5 {[%clk 0:00:51.1]} 52... Ra4 {[%clk 0:00:39.4]} 53. Rb6+
{[%clk 0:00:51.3]} 53... Kf7 {[%clk 0:00:38.1]} 54. Rf6+ {[%clk 0:00:49.6]}
54... Ke8 {[%clk 0:00:36.5]} 55. Rg6 {[%clk 0:00:48.5]} 55... g4 {[%clk
0:00:36.2]} 56. Rg7 {[%clk 0:00:46.8]} 56... Kf8 {[%clk 0:00:35.9]} 57. Rb7
{[%clk 0:00:43.8]} 57... Ke8 {[%clk 0:00:34.2]} 58. Ke6 {[%clk 0:00:43.6]} 58...
Kd8 {[%clk 0:00:28.8]} 59. Rg7 {[%clk 0:00:39.9]} 59... Kc8 {[%clk 0:00:27.2]}
60. Nd6+ {[%clk 0:00:39.6]} 60... Kb8 {[%clk 0:00:26.5]} 61. Kd5 {[%clk
0:00:39.5]} 61... Ka8 {[%clk 0:00:20.6]} 62. Kc6 {[%clk 0:00:38.4]} 62... Ra6+
{[%clk 0:00:20.4]} 63. Kc5 {[%clk 0:00:38.1]} 63... Ra2 {[%clk 0:00:16.7]} 64.
Kb6 {[%clk 0:00:37.7]} 64... Rb2+ {[%clk 0:00:16.5]} 65. Nb5 {[%clk 0:00:38]}
1-0

[Event "Late-Titled-Tuesday-Blitz-February-13-2024"]
[Site "Chess.com"]
[Date "2024.02.13"]
[Round "2"]
[White "Mikayel99"]
[Black "nitpicker"]
[Result "1-0"]
[WhiteElo "2504"]
[BlackElo "2248"]
[TimeControl "180+1"]
[EndTime "14:18:12 PST"]
[Termination "Mikayel99 won on time"]

1. e4 {[%clk 0:03:00.9]} 1... c5 {[%clk 0:02:59.4]} 2. Nf3 {[%clk 0:02:59.4]}
2... Nc6 {[%clk 0:02:59.6]} 3. b3 {[%clk 0:02:59.5]} 3... d6 {[%clk 0:02:57.7]}
4. Bb2 {[%clk 0:02:59.8]} 4... e6 {[%clk 0:02:56.8]} 5. d4 {[%clk 0:02:59.9]}
5... cxd4 {[%clk 0:02:55.8]} 6. Nxd4 {[%clk 0:03:00.8]} 6... Bd7 {[%clk
0:02:55.1]} 7. Bd3 {[%clk 0:02:59.8]} 7... Nf6 {[%clk 0:02:50.7]} 8. O-O {[%clk
0:02:57.8]} 8... Be7 {[%clk 0:02:48.4]} 9. Nxc6 {[%clk 0:02:56.2]} 9... Bxc6
{[%clk 0:02:46.5]} 10. Nd2 {[%clk 0:02:56.2]} 10... Qc7 {[%clk 0:02:33]} 11. Qe2
{[%clk 0:02:54.1]} 11... a6 {[%clk 0:02:31.6]} 12. a4 {[%clk 0:02:53.2]} 12...
O-O {[%clk 0:02:28.9]} 13. a5 {[%clk 0:02:50.7]} 13... Nd7 {[%clk 0:02:23.1]}
14. Rfd1 {[%clk 0:02:37]} 14... Bf6 {[%clk 0:02:19.9]} 15. Bxf6 {[%clk
0:02:35.3]} 15... Nxf6 {[%clk 0:02:20.5]} 16. Nc4 {[%clk 0:02:35.2]} 16... d5
{[%clk 0:02:11]} 17. Nb6 {[%clk 0:02:33]} 17... Rad8 {[%clk 0:02:10.6]} 18. e5
{[%clk 0:02:28.9]} 18... Nd7 {[%clk 0:02:08.3]} 19. Nxd7 {[%clk 0:02:27.2]}
19... Rxd7 {[%clk 0:02:01.9]} 20. f4 {[%clk 0:02:23.1]} 20... d4 {[%clk
0:01:52.3]} 21. Rf1 {[%clk 0:02:07.9]} 21... g6 {[%clk 0:01:50.1]} 22. Qd2
{[%clk 0:01:59.9]} 22... Bd5 {[%clk 0:01:41.7]} 23. f5 {[%clk 0:01:49]} 23...
exf5 {[%clk 0:01:28.4]} 24. Bxf5 {[%clk 0:01:48.9]} 24... Re7 {[%clk 0:01:28.6]}
25. Qxd4 {[%clk 0:01:25.2]} 25... Qxe5 {[%clk 0:01:28.5]} 26. Qxe5 {[%clk
0:01:24.6]} 26... Rxe5 {[%clk 0:01:28.7]} 27. Bd3 {[%clk 0:01:25.3]} 27... Be4
{[%clk 0:01:26.4]} 28. Rae1 {[%clk 0:01:20.8]} 28... Bxd3 {[%clk 0:01:01.8]} 29.
Rxe5 {[%clk 0:01:18.2]} 29... Bxf1 {[%clk 0:01:01.9]} 30. Kxf1 {[%clk
0:01:18.9]} 30... Rc8 {[%clk 0:01:00]} 31. c4 {[%clk 0:01:18]} 31... Kf8 {[%clk
0:00:56.5]} 32. Ke2 {[%clk 0:01:17.4]} 32... Rd8 {[%clk 0:00:55]} 33. b4 {[%clk
0:01:10.2]} 33... f6 {[%clk 0:00:53.9]} 34. Re6 {[%clk 0:01:08.1]} 34... Kf7
{[%clk 0:00:53]} 35. Rb6 {[%clk 0:01:08.7]} 35... Rd7 {[%clk 0:00:50.6]} 36. c5
{[%clk 0:01:04.5]} 36... Rc7 {[%clk 0:00:36.1]} 37. Kd3 {[%clk 0:01:03.6]} 37...
f5 {[%clk 0:00:33.4]} 38. Kc4 {[%clk 0:01:00.9]} 38... g5 {[%clk 0:00:27.8]} 39.
Kd5 {[%clk 0:00:57]} 39... f4 {[%clk 0:00:21.7]} 40. Ke5 {[%clk 0:00:49.8]}
40... Kg7 {[%clk 0:00:17.3]} 41. Kf5 {[%clk 0:00:49.8]} 41... h6 {[%clk
0:00:17.8]} 42. Kg4 {[%clk 0:00:44.8]} 42... Re7 {[%clk 0:00:17.1]} 43. Kh5
{[%clk 0:00:41.6]} 43... Re2 {[%clk 0:00:15.2]} 44. Rxb7+ {[%clk 0:00:41.9]}
44... Kf6 {[%clk 0:00:15.6]} 45. Rb6+ {[%clk 0:00:40.2]} 45... Kf5 {[%clk
0:00:15.7]} 46. Kxh6 {[%clk 0:00:36.1]} 46... Rxg2 {[%clk 0:00:15.5]} 47. c6
{[%clk 0:00:31.1]} 47... f3 {[%clk 0:00:15.9]} 48. Rb8 {[%clk 0:00:21.3]} 48...
Rc2 {[%clk 0:00:14.3]} 49. b5 {[%clk 0:00:18.6]} 49... axb5 {[%clk 0:00:09.7]}
50. Rf8+ {[%clk 0:00:17.2]} 50... Kg4 {[%clk 0:00:09.8]} 51. Rf6 {[%clk
0:00:14.7]} 51... b4 {[%clk 0:00:07.2]} 52. a6 {[%clk 0:00:14.6]} 52... b3
{[%clk 0:00:07.6]} 53. a7 {[%clk 0:00:15.1]} 53... b2 {[%clk 0:00:08]} 54. a8=Q
{[%clk 0:00:14.1]} 54... b1=Q {[%clk 0:00:08.9]} 55. Qa4+ {[%clk 0:00:11.1]}
55... Kh3 {[%clk 0:00:07.1]} 56. Rxf3+ {[%clk 0:00:10.8]} 56... Kg2 {[%clk
0:00:07]} 57. Qe4 {[%clk 0:00:05.7]} 57... Kg1 {[%clk 0:00:03.7]} 58. Rg3+
{[%clk 0:00:04.8]} 58... Kf1 {[%clk 0:00:02.1]} 59. Qh1+ {[%clk 0:00:04.3]} 1-0

[Event "Late-Titled-Tuesday-Blitz-February-13-2024"]
[Site "Chess.com"]
[Date "2024.02.13"]
[Round "2"]
[White "Alex_Sahakyan2006"]
[Black "Nouali_Mohamed"]
[Result "1-0"]
[WhiteElo "2876"]
[BlackElo "2570"]
[TimeControl "180+1"]
[EndTime "14:18:16 PST"]
[Termination "Alex_Sahakyan2006 won by checkmate"]

1. d4 {[%clk 0:02:57.2]} 1... Nf6 {[%clk 0:02:59.4]} 2. c4 {[%clk 0:02:57.5]}
2... g6 {[%clk 0:02:59.8]} 3. Nc3 {[%clk 0:02:56.5]} 3... Bg7 {[%clk 0:03:00.1]}
4. e4 {[%clk 0:02:56.9]} 4... O-O {[%clk 0:02:59.9]} 5. f4 {[%clk 0:02:57.6]}
5... d6 {[%clk 0:02:58.8]} 6. Nf3 {[%clk 0:02:56.8]} 6... c5 {[%clk 0:02:57.9]}
7. d5 {[%clk 0:02:57.2]} 7... Qa5 {[%clk 0:02:52.3]} 8. Bd3 {[%clk 0:02:55.4]}
8... Nxd5 {[%clk 0:02:52]} 9. exd5 {[%clk 0:02:42.8]} 9... Bxc3+ {[%clk
0:02:50.8]} 10. bxc3 {[%clk 0:02:43]} 10... Qxc3+ {[%clk 0:02:51.7]} 11. Qd2
{[%clk 0:02:43.5]} 11... Qxa1 {[%clk 0:02:51.5]} 12. O-O {[%clk 0:02:43.8]}
12... Qg7 {[%clk 0:02:49.2]} 13. Bb2 {[%clk 0:02:43.6]} 13... f6 {[%clk
0:02:49.4]} 14. Re1 {[%clk 0:02:37.2]} 14... Bg4 {[%clk 0:02:24.9]} 15. Ng5
{[%clk 0:02:28.1]} 15... Na6 {[%clk 0:02:15.4]} 16. h3 {[%clk 0:02:25.5]} 16...
Bd7 {[%clk 0:02:14.7]} 17. Re3 {[%clk 0:01:43.3]} 17... Nc7 {[%clk 0:02:11.3]}
18. Qe1 {[%clk 0:01:32.6]} 18... Rae8 {[%clk 0:01:58.2]} 19. h4 {[%clk
0:01:24.8]} 19... Bg4 {[%clk 0:01:31.7]} 20. Ne4 {[%clk 0:01:12.2]} 20... b6
{[%clk 0:01:21.3]} 21. Rg3 {[%clk 0:01:02.1]} 21... Bf5 {[%clk 0:01:12.8]} 22.
h5 {[%clk 0:00:46.3]} 22... Qh6 {[%clk 0:01:10.3]} 23. hxg6 {[%clk 0:00:46.7]}
23... hxg6 {[%clk 0:01:09.9]} 24. Qe3 {[%clk 0:00:42.2]} 24... Kf7 {[%clk
0:00:56.9]} 25. Nf2 {[%clk 0:00:22.7]} 25... e6 {[%clk 0:00:48.6]} 26. Bxf5
{[%clk 0:00:17.7]} 26... exf5 {[%clk 0:00:49.5]} 27. Qc3 {[%clk 0:00:18]} 27...
Ke7 {[%clk 0:00:38.5]} 28. Nh3 {[%clk 0:00:13.6]} 28... Kd7 {[%clk 0:00:36.9]}
29. Qa3 {[%clk 0:00:09.9]} 29... a6 {[%clk 0:00:35.6]} 30. Qa4+ {[%clk 0:00:09]}
30... b5 {[%clk 0:00:36.1]} 31. Qa5 {[%clk 0:00:04.8]} 31... Re2 {[%clk
0:00:29]} 32. Bc3 {[%clk 0:00:02.3]} 32... Qh4 {[%clk 0:00:28]} 33. Rxg6 {[%clk
0:00:02.1]} 33... Rf7 {[%clk 0:00:20.6]} 34. Qb6 {[%clk 0:00:02.4]} 34... Qh8
{[%clk 0:00:08]} 35. Qc6+ {[%clk 0:00:02.8]} 35... Kc8 {[%clk 0:00:05.5]} 36.
Qxd6 {[%clk 0:00:01.9]} 36... Rd7 {[%clk 0:00:02.5]} 37. Qc6 {[%clk 0:00:01.9]}
37... Rde7 {[%clk 0:00:02.2]} 38. Bxf6 {[%clk 0:00:02.1]} 38... Re1+ {[%clk
0:00:03]} 39. Kh2 {[%clk 0:00:02.7]} 39... Rh1+ {[%clk 0:00:02.9]} 40. Kxh1
{[%clk 0:00:03]} 40... Re1+ {[%clk 0:00:01.4]} 41. Kh2 {[%clk 0:00:03.3]} 41...
Qe8 {[%clk 0:00:02.3]} 42. Qxe8+ {[%clk 0:00:03.1]} 42... Nxe8 {[%clk
0:00:03.2]} 43. Be5 {[%clk 0:00:03.8]} 43... bxc4 {[%clk 0:00:02.9]} 44. Rc6+
{[%clk 0:00:04.1]} 44... Kd7 {[%clk 0:00:03.1]} 45. Rxc5 {[%clk 0:00:05]} 45...
Rxe5 {[%clk 0:00:03]} 46. fxe5 {[%clk 0:00:04.8]} 46... Nc7 {[%clk 0:00:02.9]}
47. e6+ {[%clk 0:00:04.5]} 47... Kd6 {[%clk 0:00:03]} 48. Rc6+ {[%clk
0:00:04.9]} 48... Kxd5 {[%clk 0:00:03]} 49. Rxc7 {[%clk 0:00:05.6]} 49... Kxe6
{[%clk 0:00:03.9]} 50. Rxc4 {[%clk 0:00:06]} 50... Ke5 {[%clk 0:00:04.8]} 51.
Ra4 {[%clk 0:00:06.9]} 51... Kf6 {[%clk 0:00:05.3]} 52. Nf4 {[%clk 0:00:07.7]}
52... Kg5 {[%clk 0:00:06.2]} 53. Kg3 {[%clk 0:00:08.4]} 53... a5 {[%clk
0:00:06.4]} 54. Rxa5 {[%clk 0:00:08.2]} 54... Kh6 {[%clk 0:00:06.4]} 55. Ra6+
{[%clk 0:00:08.6]} 55... Kg5 {[%clk 0:00:07.3]} 56. Rg6# {[%clk 0:00:08.8]} 1-0

[Event "Late-Titled-Tuesday-Blitz-February-13-2024"]
[Site "Chess.com"]
[Date "2024.02.13"]
[Round "2"]
[White "Nick12772"]
[Black "AradNazari"]
[Result "0-1"]
[WhiteElo "2375"]
[BlackElo "2769"]
[TimeControl "180+1"]
[EndTime "14:18:16 PST"]
[Termination "AradNazari won by resignation"]

1. Nf3 {[%clk 0:03:00.9]} 1... c5 {[%clk 0:02:57.2]} 2. g3 {[%clk 0:03:01.4]}
2... Nc6 {[%clk 0:02:55.7]} 3. d4 {[%clk 0:03:01.4]} 3... g6 {[%clk 0:02:56.3]}
4. Bg2 {[%clk 0:03:01.4]} 4... cxd4 {[%clk 0:02:56.1]} 5. Nxd4 {[%clk
0:03:01.4]} 5... Bg7 {[%clk 0:02:54.3]} 6. Nxc6 {[%clk 0:03:01.5]} 6... bxc6
{[%clk 0:02:54]} 7. c4 {[%clk 0:03:01]} 7... Nf6 {[%clk 0:02:49.3]} 8. O-O
{[%clk 0:02:58.8]} 8... O-O {[%clk 0:02:49.3]} 9. Nc3 {[%clk 0:02:59.5]} 9... e6
{[%clk 0:02:43.2]} 10. Bf4 {[%clk 0:02:11.7]} 10... d5 {[%clk 0:02:42]} 11. cxd5
{[%clk 0:02:10.9]} 11... cxd5 {[%clk 0:02:40]} 12. Be5 {[%clk 0:02:10.9]} 12...
Bd7 {[%clk 0:02:35.2]} 13. Qd4 {[%clk 0:02:09.7]} 13... Qb6 {[%clk 0:02:27.5]}
14. Qh4 {[%clk 0:01:35.1]} 14... Nh5 {[%clk 0:01:57.8]} 15. Bxg7 {[%clk
0:01:33.9]} 15... Nxg7 {[%clk 0:01:58.7]} 16. b3 {[%clk 0:01:31.8]} 16... Nf5
{[%clk 0:01:52.9]} 17. Qf6 {[%clk 0:01:31.3]} 17... Qd4 {[%clk 0:01:51.6]} 18.
Qxd4 {[%clk 0:01:29.2]} 18... Nxd4 {[%clk 0:01:52.5]} 19. e3 {[%clk 0:01:28.3]}
19... Nc2 {[%clk 0:01:47.1]} 20. Rac1 {[%clk 0:01:25.4]} 20... Na3 {[%clk
0:01:47.6]} 21. Ne2 {[%clk 0:01:07.2]} 21... Bb5 {[%clk 0:01:45.6]} 22. Rfe1
{[%clk 0:01:04.2]} 22... Bxe2 {[%clk 0:01:44.1]} 23. Rxe2 {[%clk 0:01:05.1]}
23... Rac8 {[%clk 0:01:44.5]} 24. Ree1 {[%clk 0:00:58.3]} 24... f5 {[%clk
0:01:41.3]} 25. h4 {[%clk 0:00:53.2]} 25... Kf7 {[%clk 0:01:41.3]} 26. Bf3
{[%clk 0:00:53.4]} 26... Kf6 {[%clk 0:01:40.8]} 27. Kg2 {[%clk 0:00:53.4]} 27...
h6 {[%clk 0:01:40.2]} 28. Be2 {[%clk 0:00:52.2]} 28... Ke5 {[%clk 0:01:36.9]}
29. Bd3 {[%clk 0:00:52.2]} 29... Kd6 {[%clk 0:01:28.9]} 30. Kf3 {[%clk
0:00:49.5]} 30... e5 {[%clk 0:01:26.1]} 31. Kg2 {[%clk 0:00:46.2]} 31... a5
{[%clk 0:01:15.7]} 32. h5 {[%clk 0:00:37.9]} 32... e4 {[%clk 0:01:11.1]} 33. Ba6
{[%clk 0:00:30.7]} 33... Rxc1 {[%clk 0:01:07.6]} 34. Rxc1 {[%clk 0:00:31.6]}
34... g5 {[%clk 0:01:00.3]} 35. Rc8 {[%clk 0:00:30.7]} 35... Rxc8 {[%clk
0:00:59.2]} 36. Bxc8 {[%clk 0:00:31.6]} 36... Ke5 {[%clk 0:00:59.2]} 37. f4+
{[%clk 0:00:17.4]} 37... exf3+ {[%clk 0:00:57.5]} 38. Kxf3 {[%clk 0:00:17.8]}
38... Nc2 {[%clk 0:00:57.7]} 39. Ke2 {[%clk 0:00:12.2]} 39... Nb4 {[%clk
0:00:56.8]} 40. a4 {[%clk 0:00:08.7]} 40... f4 {[%clk 0:00:44.2]} 41. exf4+
{[%clk 0:00:08.9]} 41... gxf4 {[%clk 0:00:45.1]} 42. g4 {[%clk 0:00:09]} 42...
d4 {[%clk 0:00:37.2]} 43. Bf5 {[%clk 0:00:07.2]} 43... Nd5 {[%clk 0:00:28.4]}
44. Kf3 {[%clk 0:00:06.1]} 44... Nb4 {[%clk 0:00:24.5]} 45. Bb1 {[%clk
0:00:06.1]} 45... Na6 {[%clk 0:00:24.7]} 46. Bd3 {[%clk 0:00:06.1]} 46... Nc5
{[%clk 0:00:24.9]} 47. Bc2 {[%clk 0:00:06.2]} 47... Ne6 {[%clk 0:00:24.8]} 48.
Bd3 {[%clk 0:00:05.5]} 48... Ng5+ {[%clk 0:00:22.5]} 49. Kf2 {[%clk 0:00:05.8]}
49... Kd5 {[%clk 0:00:19.7]} 50. Bc2 {[%clk 0:00:03.6]} 50... Kc5 {[%clk
0:00:19.2]} 51. Bd3 {[%clk 0:00:04.2]} 51... Kb4 {[%clk 0:00:19.5]} 52. Bc4
{[%clk 0:00:04.3]} 52... Kc3 {[%clk 0:00:20.1]} 53. Ke2 {[%clk 0:00:03.7]} 53...
f3+ {[%clk 0:00:14.3]} 54. Kd1 {[%clk 0:00:02.5]} 54... d3 {[%clk 0:00:14.1]}
55. Ke1 {[%clk 0:00:02.3]} 55... Kc2 {[%clk 0:00:12.1]} 56. Bxd3+ {[%clk
0:00:02]} 56... Kxd3 {[%clk 0:00:12]} 57. b4 {[%clk 0:00:02.2]} 57... axb4
{[%clk 0:00:11.4]} 58. a5 {[%clk 0:00:02.9]} 58... b3 {[%clk 0:00:12.1]} 59. a6
{[%clk 0:00:02.7]} 59... b2 {[%clk 0:00:12.7]} 0-1